bitfinex/quotes_BTCUSD_20251201
["timestamp","ask_amount","ask_price","bid_price","bid_amount"]
[1764625849796,0.00025453,86452.0,86451.0,0.24282496]
[1764625856786,0.00025453,86452.0,86451.0,0.56582496]
[1764625858657,0.00025453,86452.0,86451.0,0.56982496]
[1764625858909,0.00025453,86452.0,86451.0,0.56582496]
[1764625859135,0.00025453,86452.0,86451.0,0.56682496]
[1764625859348,0.00025453,86452.0,86451.0,0.57182496]
[1764625859821,0.00025453,86452.0,86451.0,0.57082496]
[1764625860400,0.00025453,86452.0,86451.0,0.96582496]
[1764625860849,0.00025453,86452.0,86451.0,0.96982496]
[1764625861046,0.00025453,86452.0,86451.0,0.95934492]
[1764625861358,0.00025453,86452.0,86451.0,0.58918496]
[1764625861662,0.00025453,86452.0,86451.0,0.58418496]
[1764625861810,0.00025453,86452.0,86451.0,0.59018496]
[1764625862003,0.00025453,86452.0,86451.0,0.58518496]
[1764625862460,0.00025453,86452.0,86451.0,0.58818496]
[1764625862644,0.00025453,86452.0,86451.0,0.58918496]
[1764625867816,0.00025453,86452.0,86451.0,0.97770492]
[1764625868066,0.00025453,86452.0,86451.0,2.98918496]
[1764625870131,1e-08,86452.0,86451.0,3.05170795]
[1764625871375,1e-08,86452.0,86451.0,3.05070795]
[1764625871768,1e-08,86452.0,86451.0,3.05270795]
[1764625872691,1e-08,86452.0,86451.0,3.04870795]
[1764625873072,1e-08,86452.0,86451.0,3.05370795]
[1764625873452,1e-08,86452.0,86451.0,1.03534795]
[1764625873808,1e-08,86452.0,86451.0,3.05370795]
[1764625875386,1e-08,86452.0,86451.0,3.03534795]
[1764625875586,1e-08,86452.0,86451.0,3.05370795]
[1764625876887,1e-08,86452.0,86451.0,3.08846543]
[1764625878582,0.01156136,86495.0,86490.0,0.23123905]
[1764625878789,0.01156109,86497.0,86491.0,0.01156189]
[1764625878929,0.24278564,86497.0,86493.0,0.24279209]
[1764625879140,0.2427872,86496.0,86492.0,0.24279441]
[1764625879523,0.2427872,86496.0,86492.0,0.01156176]
[1764625879683,0.24290307,86496.0,86492.0,0.01156176]
[1764625879903,0.00011587,86496.0,86494.0,0.2312297]
[1764625880908,0.00011587,86496.0,86495.0,0.23122723]
[1764625881109,0.00211587,86496.0,86495.0,0.23122723]
[1764625882389,0.00011587,86496.0,86495.0,0.23122723]
[1764625882647,0.00211587,86496.0,86495.0,0.23122723]
[1764625882894,0.00011587,86496.0,86495.0,0.23122723]
[1764625883300,0.00211587,86496.0,86495.0,0.23122723]
[1764625885556,0.24277811,86499.0,86495.0,0.23122723]
[1764625885760,0.24278018,86498.0,86496.0,0.2312235]
[1764625886250,0.00143093,86497.0,86496.0,0.2312235]
[1764625887287,0.00143093,86497.0,86496.0,0.24270354]
[1764625887781,0.00143093,86497.0,86496.0,0.2312235]
[1764625889184,0.00143093,86497.0,86496.0,0.2322235]
[1764625889588,0.00143093,86497.0,86496.0,0.2312235]
[1764625889785,0.00143093,86497.0,86496.0,0.2322235]
[1764625889985,0.01156055,86501.0,86497.0,0.24278062]
[1764625890214,0.24277305,86501.0,86498.0,0.23121846]
[1764625890410,0.24277305,86501.0,86497.0,0.01156109]
[1764625890632,0.01156055,86501.0,86497.0,0.01156109]
[1764625890838,0.24277406,86501.0,86497.0,0.24278049]
[1764625891242,0.24276377,86504.0,86501.0,0.23121079]
[1764625891445,0.24276583,86504.0,86500.0,0.24277206]
[1764625891993,0.7826311,86510.0,86471.0,0.323]
[1764625891994,0.06643722,86503.0,86471.0,0.323]
[1764625892166,0.2312404,86491.0,86485.0,0.23125142]
[1764625892374,0.24280229,86491.0,86487.0,0.01156243]
[1764625892572,0.24280074,86491.0,86486.0,0.24281147]
[1764625892773,0.01156189,86491.0,86487.0,0.01156243]
[1764625892979,0.01156189,86491.0,86487.0,0.24281053]
[1764625893183,0.24280263,86490.0,86486.0,0.23125057]
[1764625893358,0.24280263,86490.0,86486.0,0.24281313]
[1764625893561,0.24280263,86490.0,86467.0,0.0115651]
[1764625893562,0.01156363,86478.0,86467.0,0.0115651]
[1764625893764,0.01156403,86475.0,86469.0,0.01156483]
[1764625893974,0.01156323,86481.0,86473.0,0.0115643]
[1764625894172,0.0115635,86479.0,86470.0,0.24285879]
[1764625894378,0.01156376,86477.0,86472.0,0.24285192]
[1764625894557,0.01156376,86477.0,86469.0,0.01156483]
[1764625894558,0.01156176,86492.0,86480.0,0.01156336]
[1764625894755,0.23125471,86485.0,86482.0,0.01156309]
[1764625894979,0.01156283,86484.0,86480.0,0.01156336]
[1764625895177,0.24282001,86484.0,86480.0,0.24283069]
[1764625895376,0.01156256,86486.0,86482.0,0.01156309]
[1764625895614,0.24281715,86485.0,86481.0,0.23126203]
[1764625895935,0.01156283,86484.0,86481.0,0.23126203]
[1764625896476,0.23125935,86483.0,86481.0,0.23126203]
[1764625896681,0.01156309,86482.0,86481.0,0.002]
[1764625896884,0.01156309,86482.0,86481.0,0.003]
[1764625897093,0.24282508,86482.0,86481.0,0.001]
[1764625897315,0.23127152,86479.0,86476.0,0.0115639]
[1764625897533,0.0115635,86479.0,86476.0,0.24284181]
[1764625897747,0.01156229,86488.0,86483.0,0.01156296]
[1764625897986,0.23125516,86485.0,86481.0,0.24282775]
[1764625898210,0.01156256,86486.0,86481.0,0.24282775]
[1764625898423,0.01156269,86485.0,86481.0,0.24282775]
[1764625898669,0.24280878,86488.0,86483.0,0.01156296]
[1764625898880,0.23125188,86486.0,86483.0,0.01156296]
[1764625899096,0.24281671,86485.0,86481.0,0.24282593]
[1764625899310,0.01156189,86491.0,86486.0,0.01156256]
[1764625899533,0.2312515,86486.0,86482.0,0.23126199]
[1764625899744,0.24281406,86486.0,86482.0,0.24282256]
[1764625900051,0.24280877,86488.0,86484.0,0.23125557]
[1764625900224,0.23124951,86487.0,86484.0,0.23125557]
[1764625900545,0.24280877,86488.0,86484.0,0.23125557]
[1764625900546,0.24280877,86488.0,86486.0,0.001]
[1764625900994,0.27756341,86491.0,86486.0,0.001]
[1764625900995,0.03476207,86491.0,86487.0,0.01156243]
[1764625901211,0.23124472,86489.0,86486.0,0.24381376]
[1764625901620,0.23124472,86489.0,86486.0,0.001]
[1764625901621,0.23124837,86488.0,86486.0,0.001]
[1764625901821,0.23124848,86488.0,86484.0,0.24281863]
[1764625901989,0.23124848,86488.0,86484.0,0.24381863]
[1764625902194,0.01156203,86490.0,86486.0,0.01156256]
[1764625902455,0.03476175,86491.0,86488.0,0.24280824]
[1764625903004,0.5542094,86502.0,86492.0,0.01156176]
[1764625903005,0.24278341,86497.0,86492.0,0.01156176]
[1764625903210,0.01156055,86501.0,86492.0,0.24279666]
[1764625903211,0.01156082,86499.0,86492.0,0.24279666]
[1764625903422,0.03476038,86494.0,86492.0,0.01156176]
[1764625903898,0.03476038,86494.0,86492.0,0.24279685]
[1764625904101,0.03476038,86494.0,86493.0,0.23123258]
[1764625904374,0.03476038,86494.0,86492.0,0.24279685]
[1764625904507,0.03476038,86494.0,86493.0,0.23123258]
[1764625904711,0.01156082,86499.0,86495.0,0.01156136]
[1764625904935,0.01156176,86492.0,86489.0,0.01156216]
[1764625905139,0.23123258,86493.0,86484.0,0.02304287]
[1764625905348,0.24279472,86493.0,86490.0,0.231239]
[1764625905549,0.24279472,86493.0,86490.0,0.24280103]
[1764625905744,0.24287507,86493.0,86490.0,0.24280103]
[1764625905947,8.035e-05,86493.0,86492.0,0.23123525]
[1764625906329,8.035e-05,86493.0,86491.0,0.23123728]
[1764625906552,8.035e-05,86493.0,86490.0,0.24280103]
[1764625906767,8.035e-05,86493.0,86491.0,0.23123781]
[1764625908314,8.035e-05,86493.0,86492.0,0.23123525]
[1764625912073,0.0002543,86505.0,86504.0,0.23120318]
[1764625914852,0.0002543,86505.0,86504.0,0.23220318]
[1764625915092,0.0002543,86505.0,86504.0,0.24368322]
[1764625918671,0.0002543,86505.0,86504.0,0.56668322]
[1764625920291,0.0002543,86505.0,86504.0,0.96668322]
[1764625920708,0.0002,86550.0,86504.0,0.96668322]
[1764625920709,0.0002,86550.0,86539.0,0.23110967]
[1764625920888,0.0002,86550.0,86539.0,0.26094971]
[1764625920889,0.00058627,86540.0,86539.0,0.26094971]
[1764625922089,0.00458627,86540.0,86539.0,0.58394971]
[1764625922290,0.00158627,86540.0,86539.0,0.58394971]
[1764625922465,0.00058627,86540.0,86539.0,0.58394971]
[1764625922685,0.00058627,86540.0,86539.0,0.63459395]
[1764625922897,0.00058627,86540.0,86539.0,0.63559395]
[1764625923266,0.00058627,86540.0,86539.0,0.63459395]
[1764625923469,0.00058627,86540.0,86539.0,2.63459395]
[1764625923663,0.00058627,86540.0,86539.0,2.63659395]
[1764625923935,0.00058627,86540.0,86539.0,2.63259395]
[1764625924097,0.0002,86550.0,86549.0,0.56556301]
[1764625924330,0.00031581,86550.0,86549.0,0.58392301]
[1764625924508,0.00031581,86550.0,86549.0,0.98392301]
[1764625925232,0.00031581,86550.0,86549.0,0.98492301]
[1764625925432,0.00031581,86550.0,86549.0,0.98792301]
[1764625929369,0.00031581,86550.0,86549.0,2.98792301]
[1764625929757,0.00174541,86550.0,86549.0,2.98792301]
[1764625931421,1e-08,86550.0,86549.0,2.98792301]
[1764625931659,1e-08,86550.0,86549.0,3.050446]
[1764625933051,0.0002,86560.0,86559.0,2.55405627]
[1764625933052,1e-08,86560.0,86559.0,2.55405627]
[1764625933253,1e-08,86560.0,86559.0,2.58389631]
[1764625933753,1e-08,86560.0,86559.0,2.96553631]
[1764625934096,1e-08,86560.0,86559.0,2.98389631]
[1764625934377,1e-08,86560.0,86559.0,2.98489631]
[1764625934628,1e-08,86560.0,86559.0,2.96853631]
[1764625934832,1e-08,86560.0,86559.0,2.98689631]
[1764625935874,1e-08,86560.0,86559.0,2.96853631]
[1764625936070,1e-08,86560.0,86559.0,0.65237627]
[1764625936398,1e-08,86560.0,86559.0,0.64553631]
[1764625936623,1e-08,86560.0,86559.0,0.96853631]
[1764625936834,1e-08,86560.0,86559.0,0.98685631]
[1764625937949,0.01154987,86581.0,86576.0,0.01155054]
[1764625938169,0.01154987,86581.0,86578.0,0.24255562]
[1764625938170,0.01166559,86581.0,86578.0,0.24255562]
[1764625938367,0.00011572,86581.0,86578.0,0.24255562]
[1764625939044,0.00092075,86579.0,86578.0,0.24255562]
[1764625939538,0.00092075,86579.0,86577.0,0.01155041]
[1764625939539,0.00092075,86579.0,86577.0,0.23100823]
[1764625939774,0.00092075,86579.0,86578.0,0.23100556]
[1764625940149,0.00011572,86581.0,86579.0,0.23100289]
[1764625940385,0.00011572,86581.0,86580.0,0.24248027]
[1764625941348,0.00011572,86581.0,86580.0,0.23100023]
[1764625941554,0.00011572,86581.0,86580.0,0.24248027]
[1764625943277,0.00011572,86581.0,86580.0,0.24648027]
[1764625943782,0.00011572,86581.0,86580.0,0.24748027]
[1764625943950,0.00011572,86581.0,86580.0,0.57048027]
[1764625944116,0.00011572,86581.0,86580.0,0.56913027]
[1764625944502,0.00011572,86581.0,86580.0,0.23665023]
[1764625944635,0.00011572,86581.0,86580.0,0.25497023]
[1764625945496,0.00011572,86581.0,86580.0,0.23265023]
[1764625945677,0.00011572,86581.0,86580.0,0.24897023]
[1764625945882,0.00011572,86581.0,86580.0,0.25097023]
[1764625946086,0.38119185,86598.0,86591.0,0.24251842]
[1764625946402,0.0013333,86592.0,86591.0,0.01154854]
[1764625947426,0.0013333,86592.0,86591.0,0.001]
[1764625948056,0.11717318,86592.0,86591.0,0.001]
[1764625948257,0.11717318,86592.0,86591.0,0.002]
[1764625949032,0.07545629,86592.0,86591.0,0.002]
[1764625949233,0.06385629,86592.0,86591.0,0.002]
[1764625949502,0.0013333,86592.0,86591.0,0.002]
[1764625950039,0.06385629,86592.0,86591.0,0.002]
[1764625950264,0.39845629,86592.0,86591.0,0.002]
[1764625950544,0.51368225,86592.0,86591.0,0.002]
[1764625950745,0.53857341,86592.0,86591.0,0.002]
[1764625950947,0.78307341,86592.0,86591.0,1e-08]
[1764625951264,0.78307341,86592.0,86533.0,0.01155628]
[1764625951266,0.01155468,86545.0,86533.0,0.01155628]
[1764625951467,0.231107,86540.0,86534.0,0.01832]
[1764625951678,0.01155468,86545.0,86534.0,0.01832]
[1764625951876,0.01155494,86543.0,86539.0,0.01155548]
[1764625952052,0.01155481,86544.0,86538.0,0.23111234]
[1764625952256,0.24264935,86545.0,86537.0,0.01155575]
[1764625952257,0.01155468,86545.0,86540.0,0.01155535]
[1764625952480,0.24264853,86545.0,86540.0,0.01155535]
[1764625952678,0.23106161,86557.0,86545.0,0.01155468]
[1764625952852,0.01155428,86548.0,86543.0,0.01155494]
[1764625953054,0.24263592,86550.0,86544.0,0.23109584]
[1764625953325,0.01155308,86557.0,86547.0,0.01155441]
[1764625953515,0.323,86563.0,86551.0,0.01155388]
[1764625953516,0.01155241,86562.0,86551.0,0.01155388]
[1764625953714,0.01155268,86560.0,86549.0,0.01155414]
[1764625953922,0.01155268,86560.0,86551.0,0.01155388]
[1764625954082,0.01155308,86557.0,86552.0,0.01155374]
[1764625954309,0.24261778,86556.0,86552.0,0.24262838]
[1764625954660,0.01155308,86557.0,86553.0,0.01155361]
[1764625954862,0.01155281,86559.0,86555.0,0.01155334]
[1764625955178,0.24260984,86559.0,86555.0,0.24261946]
[1764625956211,0.24260984,86559.0,86555.0,0.24261948]
[1764625956418,0.01155214,86564.0,86547.0,0.01832]
[1764625956419,0.2425786,86570.0,86560.0,0.01155268]
[1764625956637,0.01155134,86570.0,86561.0,0.24260347]
[1764625956845,0.01155161,86568.0,86561.0,0.01155254]
[1764625957041,0.00038107,86562.0,86561.0,0.24260347]
[1764625957476,0.00038107,86562.0,86559.0,0.01155281]
[1764625957694,0.24259128,86566.0,86561.0,0.01166826]
[1764625957896,0.24259128,86566.0,86562.0,0.24259937]
[1764625958662,0.23104089,86565.0,86562.0,0.24259937]
[1764625959133,0.24259128,86566.0,86562.0,0.24259937]
[1764625959726,0.24259128,86566.0,86563.0,0.24259767]
[1764625960127,0.02019998,86600.0,86567.0,0.01155174]
[1764625960128,0.01155081,86574.0,86567.0,0.01155174]
[1764625960394,0.323,86578.0,86572.0,0.01155107]
[1764625960615,0.323,86578.0,86575.0,0.01155067]
[1764625960825,0.01155094,86573.0,86564.0,0.01155214]
[1764625961055,0.04664424,86571.0,86565.0,0.01155201]
[1764625961262,0.04664424,86571.0,86568.0,0.01155161]
[1764625961385,0.01155094,86573.0,86569.0,0.01155147]
[1764625961768,0.24256673,86575.0,86570.0,0.24257825]
[1764625962102,0.24256425,86575.0,86573.0,0.23101845]
[1764625962303,0.01155067,86575.0,86569.0,0.24257952]
[1764625962676,0.24256705,86574.0,86571.0,0.24257539]
[1764625962954,0.323,86576.0,86573.0,0.24256875]
[1764625963158,0.323,86576.0,86574.0,0.23101624]
[1764625963364,0.38552299,86581.0,86577.0,0.01155041]
[1764625963570,0.323,86581.0,86578.0,0.01155027]
[1764625964131,0.33454987,86581.0,86577.0,0.23100802]
[1764625964447,0.24254753,86581.0,86577.0,0.01155041]
[1764625964820,0.24354753,86581.0,86577.0,0.24255864]
[1764625965018,0.2309981,86581.0,86579.0,0.01155014]
[1764625965215,0.2309981,86581.0,86575.0,0.23101271]
[1764625965216,0.04664424,86599.0,86584.0,0.01154947]
[1764625965456,0.04627025,86595.0,86588.0,0.24252517]
[1764625965668,0.01154881,86589.0,86585.0,0.01154934]
[1764625965866,0.01154881,86589.0,86576.0,0.23100855]
[1764625965867,0.01154921,86586.0,86578.0,0.01155027]
[1764625966098,0.04664424,86586.0,86585.0,0.23098689]
[1764625966515,0.24254969,86581.0,86576.0,0.01155054]
[1764625966655,0.01154987,86581.0,86579.0,0.23100242]
[1764625966879,0.01154987,86581.0,86578.0,0.24255583]
[1764625967089,0.01154987,86581.0,86579.0,0.23100211]
[1764625967539,0.24254557,86582.0,86579.0,0.23100211]
[1764625967833,0.06252299,86588.0,86585.0,0.23098689]
[1764625968329,0.24253343,86586.0,86582.0,0.01154974]
[1764625968674,0.24253343,86586.0,86582.0,0.24254205]
[1764625968869,0.24253888,86585.0,86582.0,0.24254205]
[1764625969111,0.24253888,86585.0,86556.0,0.46212443]
[1764625969112,0.01155054,86576.0,86572.0,0.24257229]
[1764625969314,0.24253722,86585.0,86576.0,0.01155054]
[1764625969486,0.33554894,86588.0,86576.0,0.01155054]
[1764625969487,0.001,86588.0,86582.0,0.01154974]
[1764625969697,0.001,86588.0,86583.0,0.24254156]
[1764625969894,0.001,86588.0,86583.0,0.01154961]
[1764625970115,0.01254894,86588.0,86583.0,0.01154961]
[1764625970316,0.04664424,86586.0,86584.0,0.01154947]
[1764625970520,0.04764424,86586.0,86584.0,0.01154947]
[1764625970717,0.27862961,86586.0,86584.0,0.01154947]
[1764625970924,0.27762961,86586.0,86584.0,0.01154947]
[1764625971123,0.27877252,86586.0,86584.0,0.01154947]
[1764625971324,0.27762961,86586.0,86584.0,0.01154947]
[1764625971524,0.00111117,86585.0,86584.0,0.24253902]
[1764625973614,0.00211117,86585.0,86584.0,0.25401906]
[1764625974007,0.00211117,86585.0,86584.0,0.26085902]
[1764625976917,0.0028,86598.0,86597.0,0.23095488]
[1764625977085,0.0028,86598.0,86596.0,0.23095537]
[1764625977086,0.0028,86598.0,86596.0,0.23095521]
[1764625977258,0.0028,86598.0,86597.0,0.23095488]
[1764625977586,0.00038085,86597.0,86595.0,0.26082786]
[1764625977744,0.0028,86598.0,86595.0,0.02986801]
[1764625977948,0.0028,86598.0,86597.0,0.23095488]
[1764625978782,0.0038,86598.0,86597.0,0.23095488]
[1764625979974,0.0068,86598.0,86597.0,0.23095488]
[1764625980502,0.0038,86598.0,86597.0,0.23095488]
[1764625980661,0.0068,86598.0,86597.0,0.23095488]
[1764625982178,0.0068,86598.0,86597.0,0.01832]
[1764625982378,0.0068,86598.0,86597.0,0.24927488]
[1764625983917,0.0068,86598.0,86597.0,0.23095488]
[1764625984299,0.00721258,86598.0,86597.0,0.23095488]
[1764625984498,0.00721258,86598.0,86596.0,0.01832]
[1764625984499,0.00721258,86598.0,86596.0,0.249277]
[1764625984741,0.0068,86598.0,86596.0,0.249277]
[1764625985368,0.0068,86598.0,86591.0,0.01832]
[1764625985369,0.01154814,86594.0,86591.0,0.01832]
[1764625985547,0.23096821,86592.0,86591.0,0.01832]
[1764625985767,0.0038,86598.0,86573.0,0.01155094]
[1764625985768,0.01155027,86578.0,86573.0,0.01155094]
[1764625985975,0.01154974,86582.0,86575.0,0.01155067]
[1764625985976,0.01155001,86580.0,86575.0,0.01155067]
[1764625986377,0.01155001,86580.0,86577.0,0.23100757]
[1764625986783,0.2425512,86580.0,86577.0,0.23100757]
[1764625987263,0.24929739,86589.0,86577.0,0.23100757]
[1764625987264,0.01154947,86584.0,86581.0,0.23099736]
[1764625987490,0.24254149,86584.0,86580.0,0.23099957]
[1764625987708,0.23099708,86582.0,86578.0,0.23100336]
[1764625987886,0.23099873,86581.0,86578.0,0.23100336]
[1764625988087,0.2310003,86580.0,86578.0,0.01155027]
[1764625988289,0.2310003,86580.0,86569.0,0.23102954]
[1764625988290,0.23100387,86579.0,86570.0,0.01155134]
[1764625988496,0.23100387,86579.0,86576.0,0.24255889]
[1764625989636,0.23100775,86578.0,86572.0,0.24268749]
[1764625989878,0.01155041,86577.0,86575.0,0.01832]
[1764625989996,0.01155041,86577.0,86572.0,0.01166679]
[1764625989997,0.2310189,86573.0,86572.0,0.00011572]
[1764625991037,0.2310189,86573.0,86572.0,0.00111572]
[1764625991245,0.2310189,86573.0,86572.0,0.00011572]
[1764625991657,0.2320189,86573.0,86572.0,0.00011572]
[1764625994363,0.29542836,86573.0,86572.0,0.00011572]
[1764625995158,0.001,86573.0,86572.0,0.00011572]
[1764625995361,0.2320189,86573.0,86572.0,0.00011572]
[1764625995854,0.2310189,86573.0,86572.0,0.00011572]
[1764625996261,0.2320189,86573.0,86572.0,0.00011572]
[1764625996586,0.2310189,86573.0,86572.0,0.00011572]
[1764625996772,0.001,86573.0,86572.0,0.00011572]
[1764625996986,0.23101646,86574.0,86572.0,0.00011572]
[1764625997170,3.08639527,86620.0,86577.0,0.01155041]
[1764625997171,0.33454974,86582.0,86577.0,0.01155041]
[1764625997382,0.05819411,86581.0,86577.0,0.242558]
[1764625997677,0.24255255,86580.0,86575.0,0.24256335]
[1764625997857,0.04664424,86581.0,86577.0,0.01155041]
[1764625998055,0.04664424,86581.0,86579.0,0.23100285]
[1764625998269,0.03472581,86582.0,86579.0,0.24255299]
[1764625998457,0.01154907,86587.0,86582.0,0.01154974]
[1764625998715,0.323,86585.0,86582.0,0.24254387]
[1764625999017,0.55398715,86585.0,86582.0,0.24254306]
[1764625999218,0.56553649,86585.0,86582.0,0.24254306]
[1764625999371,0.56553649,86585.0,86577.0,0.01155041]
[1764625999372,0.01254987,86581.0,86577.0,0.01155041]
[1764625999580,0.001,86581.0,86580.0,0.23100023]
[1764625999806,0.01154947,86584.0,86580.0,0.24255024]
[1764626000208,0.56553736,86585.0,86581.0,0.24254666]
[1764626001063,0.24254153,86584.0,86581.0,0.24254666]
[1764626001263,0.24354153,86584.0,86581.0,0.24254666]
[1764626001764,0.230993,86583.0,86581.0,0.01154987]
[1764626003140,0.231993,86583.0,86581.0,0.01154987]
[1764626003496,0.24254682,86582.0,86578.0,0.24255367]
[1764626003727,0.01154974,86582.0,86579.0,0.01155014]
[1764626003899,0.001,86583.0,86582.0,0.23099489]
[1764626004978,0.001,86583.0,86581.0,0.23099666]
[1764626005336,0.24253979,86584.0,86581.0,0.23099666]
[1764626005495,0.001,86582.0,86581.0,0.23099666]
[1764626005983,0.23099226,86583.0,86580.0,0.24255007]
[1764626006116,0.15887194,86583.0,86579.0,0.01155014]
[1764626006516,0.01154974,86582.0,86573.0,0.01155094]
[1764626006727,0.24254858,86581.0,86578.0,0.24255344]
[1764626007082,0.01154974,86582.0,86579.0,0.01155014]
[1764626007478,0.24254676,86582.0,86579.0,0.24255248]
[1764626007848,0.24254676,86582.0,86579.0,0.24255281]
[1764626009600,0.24354676,86582.0,86579.0,0.24255281]
[1764626010229,0.24354676,86582.0,86580.0,0.23100015]
[1764626010352,0.001,86582.0,86581.0,0.23099756]
[1764626011434,0.04627506,86586.0,86584.0,0.23098809]
[1764626011582,0.04664424,86586.0,86584.0,0.23098809]
[1764626011781,0.04664424,86586.0,86584.0,0.22998809]
[1764626011982,0.27762881,86586.0,86583.0,0.24254165]
[1764626012179,0.04664424,86586.0,86584.0,0.23098942]
[1764626012388,0.04664424,86586.0,86585.0,0.23098689]
[1764626013084,0.01154974,86582.0,86577.0,0.24255811]
[1764626013309,0.23099395,86583.0,86579.0,0.23100028]
[1764626013636,0.23098777,86585.0,86582.0,0.01154974]
[1764626013846,0.23098777,86585.0,86582.0,0.24254236]
[1764626014539,0.28918007,86586.0,86583.0,0.23099086]
[1764626014791,0.29018007,86586.0,86583.0,0.24254047]
[1764626014964,0.28918007,86586.0,86583.0,0.24254047]
[1764626015178,0.04664424,86586.0,86584.0,0.23098903]
[1764626015825,0.04764424,86586.0,86584.0,0.23098903]
[1764626016222,0.04664424,86586.0,86584.0,0.23098903]
[1764626016437,0.04764424,86586.0,86584.0,0.23098903]
[1764626017060,0.24253855,86585.0,86582.0,0.01154974]
[1764626017480,0.04764424,86586.0,86584.0,0.23098729]
[1764626018182,0.04664424,86586.0,86584.0,0.23098729]
[1764626018386,0.04664424,86586.0,86585.0,0.23098689]
[1764626018734,0.04664424,86586.0,86584.0,0.23098729]
[1764626019093,0.04764424,86586.0,86584.0,0.23098729]
[1764626019265,0.04764424,86586.0,86583.0,0.2425369]
[1764626019266,0.001,86586.0,86583.0,0.2425369]
[1764626019468,0.06252299,86587.0,86585.0,0.23098444]
[1764626019677,0.0740718,86589.0,86586.0,0.24253343]
[1764626019875,0.0740718,86589.0,86582.0,0.01154974]
[1764626020057,0.04664424,86586.0,86582.0,0.23099246]
[1764626020259,0.06252299,86587.0,86585.0,0.01154934]
[1764626020448,0.06252299,86588.0,86586.0,0.23098219]
[1764626020649,0.06252299,86588.0,86587.0,0.23098155]
[1764626020973,0.06252299,86589.0,86587.0,0.2309813]
[1764626021511,0.29350004,86589.0,86587.0,0.2309813]
[1764626021655,0.001,86588.0,86587.0,0.2309813]
[1764626021862,0.06252299,86589.0,86587.0,0.2309813]
[1764626022275,0.01154894,86588.0,86585.0,0.24253567]
[1764626022611,0.01154921,86586.0,86584.0,0.23098888]
[1764626022840,0.001,86588.0,86586.0,0.23098422]
[1764626022998,0.001,86588.0,86587.0,0.23098155]
[1764626023789,0.001,86588.0,86585.0,0.24253416]
[1764626023790,0.23198124,86588.0,86585.0,0.24253416]
[1764626024009,0.30504388,86591.0,86588.0,0.23097796]
[1764626024218,0.27724323,86592.0,86589.0,0.23097506]
[1764626024474,0.001,86588.0,86587.0,0.23098155]
[1764626025152,0.24251999,86591.0,86588.0,0.23097684]
[1764626025350,0.01154854,86591.0,86589.0,0.23097567]
[1764626025652,0.27724256,86592.0,86589.0,0.23097567]
[1764626026016,0.03472425,86592.0,86589.0,0.24252448]
[1764626026245,0.03472425,86592.0,86540.0,0.01999998]
[1764626026246,0.2310189,86573.0,86540.0,0.01999998]
[1764626026463,0.2310189,86573.0,86565.0,0.01832]
[1764626026872,0.2310189,86573.0,86568.0,0.01155161]
[1764626027342,0.2310189,86573.0,86569.0,0.01155147]
[1764626027547,0.2310189,86573.0,86570.0,0.01155134]
[1764626028048,0.2310189,86573.0,86567.0,0.01155174]
[1764626028576,0.2310189,86573.0,86572.0,0.00211572]
[1764626028747,0.2310189,86573.0,86572.0,0.00011572]
[1764626028947,0.01155054,86576.0,86572.0,0.00011572]
[1764626029169,0.01155067,86575.0,86572.0,0.00011572]
[1764626029831,0.2310189,86573.0,86572.0,0.00011572]
[1764626031278,0.23101685,86574.0,86572.0,0.00011572]
[1764626031960,0.2310189,86573.0,86572.0,0.00011572]
[1764626033996,0.23101685,86574.0,86572.0,0.00011572]
[1764626034578,0.2310189,86573.0,86572.0,0.00011572]
[1764626038087,0.23101685,86574.0,86572.0,0.00011572]
[1764626038251,0.2310189,86573.0,86572.0,0.00011572]
[1764626038595,0.01155067,86575.0,86572.0,0.00011572]
[1764626038805,0.01155027,86578.0,86572.0,0.00011572]
[1764626039009,0.2310189,86573.0,86572.0,0.00011572]
[1764626040526,0.23101871,86574.0,86572.0,0.00011572]
[1764626040964,0.03472887,86577.0,86574.0,0.01155081]
[1764626041164,0.1207175,86578.0,86574.0,0.24256672]
[1764626041352,0.14389755,86578.0,86575.0,0.01155067]
[1764626041580,0.24255866,86577.0,86573.0,0.01155094]
[1764626041826,0.23101357,86575.0,86572.0,0.00011572]
[1764626041996,0.23101714,86574.0,86572.0,0.00011572]
[1764626042175,0.24256148,86576.0,86572.0,0.24268602]
[1764626042375,0.24256148,86576.0,86573.0,0.23101668]
[1764626042600,0.24256148,86576.0,86574.0,0.23101617]
[1764626042950,0.24256148,86576.0,86573.0,0.24256762]
[1764626043483,0.23101428,86575.0,86573.0,0.24256762]
[1764626043689,0.01155054,86576.0,86574.0,0.23101624]
[1764626043894,0.24256162,86576.0,86574.0,0.23101624]
[1764626044300,0.01155054,86576.0,86574.0,0.23101624]
[1764626044524,0.15544782,86578.0,86573.0,0.01155094]
[1764626044525,0.14389755,86578.0,86576.0,0.2310109]
[1764626044840,0.15544782,86578.0,86572.0,0.00011572]
[1764626044995,0.38645566,86578.0,86572.0,0.01166679]
[1764626045619,0.15544782,86578.0,86576.0,0.23100966]
[1764626045853,0.15544782,86578.0,86576.0,0.23100956]
[1764626046059,0.35172362,86578.0,86575.0,0.23101341]
[1764626046286,0.1207175,86578.0,86576.0,0.23100917]
[1764626046715,0.35172356,86578.0,86576.0,0.23100917]
[1764626047110,0.01154934,86585.0,86579.0,0.23100289]
[1764626047404,0.28918286,86585.0,86580.0,0.24254822]
[1764626047602,0.28918286,86585.0,86581.0,0.23099748]
[1764626047910,0.28918286,86585.0,86583.0,0.23099186]
[1764626047911,0.05819358,86585.0,86583.0,0.23099186]
[1764626048204,0.05819358,86585.0,86582.0,0.23099398]
[1764626048400,0.2309897,86584.0,86582.0,0.23099398]
[1764626048605,0.05819358,86585.0,86582.0,0.24254372]
[1764626048802,0.04664424,86585.0,86583.0,0.2309906]
[1764626049014,0.04664424,86585.0,86582.0,0.24254372]
[1764626049151,0.27763149,86585.0,86582.0,0.24254372]
[1764626049352,0.27763149,86585.0,86582.0,0.01154974]
[1764626049654,0.27763149,86585.0,86582.0,0.24254257]
[1764626049858,0.04664424,86585.0,86583.0,0.2309918]
[1764626050068,0.35772585,86588.0,86585.0,0.24253413]
[1764626050270,0.36927479,86588.0,86584.0,0.01154947]
[1764626050511,0.35772585,86588.0,86585.0,0.24253568]
[1764626050901,0.09724884,86588.0,86587.0,0.23098155]
[1764626051083,0.0740718,86589.0,86585.0,0.01154934]
[1764626051281,0.323,86587.0,86584.0,0.24253891]
[1764626051482,0.24253554,86586.0,86582.0,0.01154974]
[1764626051707,0.23081031,86586.0,86583.0,0.24254183]
[1764626052455,0.27745455,86586.0,86583.0,0.24254183]
[1764626054707,0.23099259,86583.0,86578.0,0.01155027]
[1764626054915,0.23099572,86582.0,86580.0,0.23099982]
[1764626056107,0.2425422,86583.0,86580.0,0.23099982]
[1764626056663,0.23098721,86585.0,86583.0,0.23099204]
[1764626057172,0.23098721,86585.0,86578.0,0.01155027]
[1764626057173,0.29354189,86573.0,86572.0,0.00011572]
[1764626057320,0.68150613,86573.0,86572.0,0.00011572]